bitfinex/quotes_SOLUSD_20220208
["timestamp","ask_amount","ask_price","bid_price","bid_amount"]
[1644363901654,34.81,114.26,114.18,20.20878821]
[1644363901852,30.183,114.26,114.18,20.20878821]
[1644363902053,30.433,114.26,114.18,20.20878821]
[1644363902654,30.183,114.26,114.18,108.33878821]
[1644363902854,30.433,114.26,114.18,121.47018821]
[1644363903356,24.433,114.26,114.18,121.47018821]
[1644363903554,24.4896,114.27,114.18,121.47018821]
[1644363903758,24.4896,114.27,114.18,33.34018821]
[1644363904061,30.4896,114.27,114.18,31.7114]
[1644363904458,34.8666,114.27,114.18,31.7114]
[1644363904657,47.9984,114.27,114.15,13.95878821]
[1644363904856,24.6109,114.26,114.15,12.58]
[1644363905057,24.6109,114.26,114.15,100.71]
[1644363905257,30.8609,114.26,114.15,100.71]
[1644363905456,24.8609,114.26,114.15,100.71]
[1644363905656,30.8609,114.26,114.15,100.71]
[1644363905860,30.8609,114.26,114.15,100.96]
[1644363906057,43.994,114.26,114.16,13.134]
[1644363906257,43.744,114.26,114.17,12.58]
[1644363906660,43.744,114.26,114.16,0.25]
[1644363906861,31.05965549,114.25,114.14,4.378]
[1644363907060,13.138,114.22,114.14,4.378]
[1644363907260,4.378,114.21,114.1,12.58]
[1644363907459,4.378,114.21,114.09,12.58]
[1644363907659,12.73575549,114.21,114.09,100.71]
[1644363907860,6.25,114.21,114.09,100.71]
[1644363908061,6.25,114.21,114.09,106.71]
[1644363908062,46.0677,114.2,114.09,106.71]
[1644363908259,46.3177,114.2,114.09,106.71]
[1644363908462,52.3177,114.2,114.11,13.1396]
[1644363908664,52.2577,114.2,114.11,19.1396]
[1644363908862,46.0077,114.2,114.11,107.5196]
[1644363909062,46.2577,114.2,114.11,120.0996]
[1644363910063,46.2577,114.2,114.11,25.9696]
[1644363910463,52.2577,114.2,114.11,25.9696]
[1644363910663,52.2577,114.2,114.11,31.9696]
[1644363911662,52.2577,114.2,114.11,25.9696]
[1644363911868,52.2577,114.2,114.11,31.9696]
[1644363912264,46.2577,114.2,114.11,31.9696]
[1644363913066,52.2577,114.2,114.11,31.9696]
[1644363913266,56.6377,114.2,114.11,31.9696]
[1644363914270,69.7772,114.2,114.11,0.25]
[1644363914470,69.7772,114.2,114.09,12.58]
[1644363914667,2.10775549,114.19,114.07,18.58]
[1644363914867,4.38,114.18,114.07,6.0]
[1644363915067,24.9222,114.17,114.05,65.8339]
[1644363915269,22.6826,114.16,114.08,4.381]
[1644363915469,22.6826,114.16,114.05,158.3449]
[1644363915668,22.6826,114.16,114.08,101.2734]
[1644363915869,24.9222,114.17,114.08,113.2624]
[1644363916068,24.9222,114.17,114.09,4.381]
[1644363916269,25.1722,114.17,114.09,0.25]
[1644363916468,25.1722,114.17,114.08,6.0]
[1644363916668,56.8743,114.17,114.07,13.1435]
[1644363916868,4.381,114.16,114.05,65.8339]
[1644363917071,33.55,114.16,114.05,65.8339]
[1644363917272,33.8,114.16,114.05,65.8339]
[1644363917770,27.8,114.16,114.06,13.1456]
[1644363918170,27.8,114.16,114.06,19.1456]
[1644363918576,33.8,114.16,114.06,19.1456]
[1644363919677,49.05185549,114.16,114.04,13.1471]
[1644363919873,69.89685549,114.16,114.05,6.0]
[1644363920074,69.89685549,114.16,114.04,6.0]
[1644363920475,69.89685549,114.16,114.03,0.024]
[1644363921277,46.6941,114.16,114.03,14.55178821]
[1644363921476,27.55,114.16,114.04,27.35640164]
[1644363921676,24.9222,114.17,114.05,4.382]
[1644363921875,24.9222,114.17,114.06,12.58]
[1644363922075,24.9222,114.17,114.06,6.0]
[1644363922278,24.9222,114.17,114.06,7.62878821]
[1644363922678,44.0653,114.17,114.07,13.1414]
[1644363922878,4.381,114.16,114.07,13.1414]
[1644363923076,4.381,114.16,114.07,19.3914]
[1644363923577,17.5254,114.16,114.07,19.3914]
[1644363923776,23.5254,114.16,114.07,13.3914]
[1644363923977,17.5254,114.16,114.07,13.3914]
[1644363924177,23.5254,114.16,114.07,13.3914]
[1644363924378,25.63315549,114.16,114.06,13.1465]
[1644363924580,25.88315549,114.16,114.06,19.1465]
[1644363924781,23.7754,114.16,114.06,19.3965]
[1644363924978,19.3944,114.16,114.06,19.3965]
[1644363925199,6.25,114.16,114.06,19.3965]
[1644363925400,17.5241,114.17,114.06,108.90528821]
[1644363925600,13.1431,114.17,114.07,12.58]
[1644363925900,13.1431,114.17,114.09,13.1424]
[1644363926299,19.1431,114.17,114.07,12.83]
[1644363926499,4.381,114.16,114.07,18.83]
[1644363926699,0.25,114.16,114.07,18.83]
[1644363926899,0.25,114.16,114.08,13.1442]
[1644363927099,0.25,114.16,114.08,20.52298821]
[1644363927301,6.0,114.19,114.08,19.3942]
[1644363927700,54.1911,114.2,114.08,13.3942]
[1644363928100,2.10775549,114.19,114.08,13.3942]
[1644363928302,4.38,114.18,114.08,13.3942]
[1644363928701,23.7721,114.18,114.08,13.3942]
[1644363930107,23.7721,114.18,114.08,19.3942]
[1644363930304,4.38,114.18,114.11,13.1397]
[1644363930505,2.10775549,114.19,114.11,13.1397]
[1644363930706,4.38,114.2,114.11,19.3897]
[1644363931303,10.38,114.2,114.11,19.3897]
[1644363931711,23.5198,114.2,114.11,19.3897]
[1644363932105,23.7698,114.2,114.11,19.3897]
[1644363932608,19.3898,114.2,114.11,19.3897]
[1644363934108,19.3898,114.2,114.11,13.3897]
[1644363934509,21.49755549,114.2,114.1,13.1422]
[1644363934710,21.49755549,114.2,114.1,13.3922]
[1644363934711,13.1417,114.18,114.1,13.3922]
[1644363935112,19.3917,114.18,114.1,13.3922]
[1644363936011,6.0,114.18,114.11,4.38]
[1644363936211,29.9432,114.19,114.13,13.1397]
[1644363936413,23.9432,114.19,114.13,13.1397]
[1644363936612,23.9432,114.19,114.13,13.3897]
[1644363936812,24.1932,114.19,114.13,13.3897]
[1644363937014,23.9432,114.19,114.13,13.3897]
[1644363938112,114.7335,114.21,114.13,13.3897]
[1644363938313,101.845,114.21,114.13,13.3897]
[1644363938515,101.595,114.21,114.13,13.3897]
[1644363938714,101.595,114.21,114.13,27.34848821]
[1644363938715,22.8127,114.21,114.13,27.34848821]
[1644363938916,22.8127,114.21,114.13,33.34848821]
[1644363939422,22.8127,114.21,114.14,4.378]
[1644363939619,22.8127,114.21,114.16,13.135]
[1644363939818,28.8127,114.21,114.12,12.58]
[1644363940020,37.7667,114.21,114.1,13.95878821]
[1644363940222,2.10775549,114.2,114.1,12.58]
[1644363940418,4.38,114.19,114.09,4.378]
[1644363940623,4.38,114.19,114.09,10.378]
[1644363940819,10.63,114.19,114.09,10.378]
[1644363941019,10.63,114.19,114.09,10.628]
[1644363941219,6.25,114.19,114.09,10.628]
[1644363941420,0.25,114.19,114.09,10.378]
[1644363941620,17.5217,114.18,114.07,56.3901]
[1644363941821,24.4421,114.17,114.07,62.3901]
[1644363942020,4.381,114.16,114.07,62.3901]
[1644363942219,19.698,114.16,114.07,62.3901]
[1644363942421,19.948,114.16,114.07,56.3901]
[1644363943122,19.948,114.16,114.07,43.8101]
[1644363943723,33.0921,114.16,114.09,13.1444]
[1644363944124,33.0921,114.16,114.09,13.3944]
[1644363944926,28.7111,114.16,114.09,13.3944]
[1644363945824,28.7111,114.16,114.07,43.8101]
[1644363945825,33.0921,114.16,114.08,13.1458]
[1644363946026,36.44545252,114.16,114.05,43.8191]
[1644363946228,13.1475,114.13,114.05,43.8191]
[1644363946626,13.3975,114.13,114.05,43.8191]
[1644363947226,13.3975,114.13,114.05,44.0691]
[1644363947432,25.2195,114.13,114.05,44.0691]
[1644363947630,31.2195,114.13,114.05,44.0691]
[1644363947830,31.2195,114.13,114.07,13.1469]
[1644363948729,4.382,114.12,114.02,5.61062778]
[1644363948930,13.1514,114.1,114.02,4.382]
[1644363949130,4.383,114.09,114.01,1.37878821]
[1644363949329,29.492,114.09,113.98,113.72862778]
[1644363949629,37.59975549,114.09,113.98,112.5]
[1644363949836,33.21675549,114.09,113.99,4.384]
[1644363950031,31.109,114.09,114.0,13.1528]
[1644363950229,25.109,114.09,114.0,31.9828]
[1644363950833,31.109,114.09,114.0,25.9828]
[1644363951230,44.2617,114.09,114.0,25.9828]
[1644363951440,44.2617,114.09,114.0,0.25]
[1644363951632,4.384,114.08,114.0,0.25]
[1644363951832,4.634,114.08,113.99,13.4041]
[1644363952031,10.634,114.08,113.99,13.4041]
[1644363952432,19.4048,114.08,113.99,13.4041]
[1644363952637,24.859,114.09,113.99,19.4041]
[1644363952834,25.109,114.09,114.02,13.1501]
[1644363953233,25.109,114.09,114.02,19.4001]
[1644363953434,31.109,114.09,114.0,4.384]
[1644363953635,31.109,114.09,114.0,4.634]
[1644363953834,31.109,114.09,114.0,10.634]
[1644363954033,31.109,114.09,114.0,4.634]
[1644363954234,31.109,114.09,114.0,10.634]
[1644363954836,31.109,114.09,114.0,19.402]
[1644363955438,31.109,114.09,114.0,13.152]
[1644363955639,4.384,114.08,113.97,41.8785]
[1644363955834,15.92,114.08,113.97,47.8785]
[1644363956035,21.92,114.08,113.97,47.8785]
[1644363956334,15.92,114.08,113.98,101.2843]
[1644363956535,23.5263,114.07,113.98,113.8643]
[1644363956735,23.5263,114.07,113.98,120.1143]
[1644363957636,23.7763,114.07,113.98,120.1143]
[1644363958639,23.7763,114.07,113.98,31.9843]
[1644363961160,34.3933,114.07,113.98,19.1543]
[1644363961359,42.50105549,114.07,113.96,37.1448]
[1644363961559,66.58295549,114.07,113.97,13.1565]
[1644363961759,4.385,114.06,113.97,13.1565]
[1644363961961,4.385,114.06,113.97,19.1565]
[1644363962158,22.7842,114.05,113.97,19.1565]
[1644363962360,23.0342,114.05,113.97,19.1565]
[1644363963059,29.0342,114.05,113.97,19.4065]
[1644363963261,23.0342,114.05,113.97,19.4065]
[1644363963660,23.0342,114.05,113.97,19.1565]
[1644363964662,22.7842,114.05,113.97,19.1805]
[1644363964863,23.0342,114.05,113.98,1.37878821]
[1644363965062,23.0342,114.05,113.98,20.55778821]
[1644363965263,23.0342,114.05,113.98,19.429]
[1644363965463,23.0342,114.05,113.98,13.405]
[1644363965867,22.7842,114.05,113.98,19.405]
[1644363966066,22.7842,114.05,113.99,1.37878821]
[1644363966374,24.0819,114.07,114.0,13.1527]
[1644363966770,24.3319,114.07,114.0,13.4267]
[1644363967572,24.3319,114.07,114.0,19.4267]
[1644363967974,24.3319,114.07,114.0,0.274]
[1644363968175,30.3319,114.07,114.0,0.274]
[1644363968475,30.3319,114.07,114.0,0.024]
[1644363968673,30.3319,114.07,113.99,13.4045]
[1644363968874,30.3319,114.07,113.99,13.4285]
[1644363969273,30.3319,114.07,113.99,13.4045]
[1644363969876,43.4864,114.07,113.99,13.4045]
[1644363970775,43.4864,114.07,113.99,13.4285]
[1644363973184,43.4864,114.07,113.99,13.4045]
[1644363976087,24.3319,114.07,113.99,13.4285]
[1644363976282,24.3319,114.07,114.0,1.37545521]
[1644363976482,24.3319,114.07,114.0,14.55265521]
[1644363976682,47.1932,114.07,114.0,13.4272]
[1644363977082,47.1932,114.07,114.0,13.1772]
[1644363977283,60.3476,114.07,114.0,13.1772]
[1644363977484,60.3476,114.07,114.0,0.024]
[1644363977684,66.3476,114.07,114.0,0.024]
[1644363977884,66.3476,114.07,113.99,0.25]
[1644363978085,66.3476,114.07,113.99,0.274]
[1644363978885,66.3476,114.07,113.99,0.024]
[1644363979685,66.3476,114.07,113.99,13.179]
[1644363979887,66.3476,114.07,113.99,13.429]
[1644363980387,46.9432,114.07,113.99,20.80459714]
[1644363980787,46.9432,114.07,113.99,34.61322492]
[1644363982788,47.1932,114.07,113.99,34.61322492]
[1644363985199,47.1932,114.07,113.99,1.39959714]
[1644363985200,66.3478,114.07,113.99,1.39959714]
[1644363985400,80.17339703,114.07,113.99,0.024]
[1644363985702,4.384,114.06,113.97,0.024]
[1644363985899,15.436,114.06,113.97,0.024]
[1644363986100,21.686,114.06,113.97,0.024]
[1644363986302,24.6609,114.05,113.97,0.024]
[1644363986700,13.1581,114.04,113.97,0.024]
[1644363987101,13.4081,114.04,113.97,0.024]
[1644363987302,24.7712,114.03,113.97,0.024]
[1644363987503,24.7712,114.03,113.95,6.024]
[1644363987703,25.0212,114.03,113.95,6.024]
[1644363988203,25.0212,114.03,113.95,6.274]
[1644363988808,38.1797,114.03,113.95,0.274]
[1644363989007,38.1797,114.03,113.95,0.024]
[1644363995019,44.1797,114.03,113.95,0.024]
[1644363995219,38.1797,114.03,113.95,0.024]
[1644363995421,44.1797,114.03,113.95,0.024]
[1644363997422,13.1623,114.0,113.95,0.024]
[1644363997622,13.1623,114.0,113.93,0.024]
[1644363997821,13.4123,114.0,113.92,0.024]
[1644363999024,23.1248,113.99,113.92,0.024]
[1644363999226,23.3748,113.99,113.91,20.08262778]
[1644364001027,33.5198,113.99,113.91,19.83262778]
[1644364001229,46.6826,113.99,113.91,1.25262778]
[1644364001430,52.6826,113.99,113.91,0.024]
[1644364001628,54.79035549,113.99,113.91,0.024]
[1644364001830,24.966,113.98,113.86,4.386]
[1644364002028,24.966,113.98,113.84,2.41823378]
[1644364002029,48.7703,113.98,113.85,1.23355723]
[1644364002240,38.900856,113.97,113.85,1.23355723]
[1644364002528,16.969,113.96,113.83,1.23355723]
[1644364002728,39.98079133,113.96,113.83,1.23355723]
[1644364002931,2.10775549,113.95,113.83,1.23355723]
[1644364003128,12.58,113.94,113.83,1.48355723]
[1644364003327,13.1728,113.92,113.83,1.23355723]
[1644364003529,13.1728,113.92,113.81,1.23355723]
[1644364003530,16.97,113.91,113.81,1.23355723]
[1644364003728,41.1367,113.91,113.81,1.23355723]
[1644364003929,34.5567,113.91,113.81,1.23355723]
[1644364004131,10.39,113.91,113.82,16.971]
[1644364004332,4.39,113.91,113.83,13.1694]
[1644364004529,4.39,113.91,113.83,28.36385707]
[1644364004729,4.39,113.96,113.84,1.38089984]
[1644364004930,50.8626,113.96,113.84,1.38089984]
[1644364005131,56.8626,113.96,113.84,7.63089984]
[1644364005331,69.4426,113.96,113.84,7.63089984]
[1644364005531,69.4426,113.96,113.85,1.38089984]
[1644364005732,13.1694,113.95,113.85,7.63089984]
[1644364005933,13.1694,113.95,113.85,6.25]
[1644364006233,35.693,113.94,113.84,4.389]
[1644364006432,40.083,113.94,113.82,22.7764]
[1644364006734,46.333,113.94,113.83,4.39]
[1644364006934,46.333,113.94,113.82,28.7764]
[1644364007132,46.333,113.94,113.83,1.38089984]
[1644364007533,59.5037,113.94,113.83,7.63089984]
[1644364008632,55.1137,113.94,113.84,4.39]
[1644364008836,54.8637,113.94,113.84,4.64]
[1644364009033,4.39,113.93,113.81,23.5605]
[1644364009435,13.1733,113.92,113.81,23.5605]
[1644364009637,19.1733,113.92,113.81,23.5605]
[1644364009836,22.9632,113.91,113.81,23.5605]
[1644364010035,22.9632,113.91,113.81,36.7319]
[1644364010234,22.9632,113.91,113.81,19.4214]
[1644364010433,23.2132,113.91,113.81,19.4214]
[1644364010635,29.2132,113.91,113.81,19.4214]
[1644364011033,29.2132,113.91,113.81,13.4214]
[1644364011235,57.07445549,113.91,113.81,0.25]
[1644364011433,4.391,113.9,113.81,0.25]
[1644364011636,10.391,113.9,113.79,4.641]
[1644364011833,10.641,113.9,113.79,4.641]
[1644364012235,10.641,113.9,113.79,10.641]
[1644364012534,13.1769,113.88,113.79,17.8173]
[1644364012734,0.25,113.88,113.79,23.8173]
[1644364012936,6.0,113.88,113.79,23.8173]
[1644364013635,23.0343,113.89,113.79,23.8173]
[1644364013835,36.46,113.89,113.79,23.8173]
[1644364014037,36.46,113.89,113.79,23.5673]
[1644364016041,42.46,113.89,113.79,23.5673]
[1644364016239,46.852,113.89,113.79,19.1763]
[1644364016641,59.432,113.89,113.79,19.1763]
[1644364016842,55.04,113.89,113.79,19.1763]
[1644364017041,55.04,113.89,113.79,19.4263]
[1644364017540,55.04,113.89,113.79,19.1763]
[1644364017740,56.89775549,113.89,113.8,0.024]
[1644364017941,4.391,113.88,113.8,0.024]
[1644364018143,6.0,113.88,113.8,13.1996]
[1644364018541,6.0,113.88,113.8,19.1996]
[1644364018742,6.0,113.88,113.8,19.4496]
[1644364018949,42.21,113.89,113.8,19.4496]
[1644364019145,42.21,113.89,113.81,0.024]
[1644364019342,42.46,113.89,113.81,0.024]
[1644364019545,42.46,113.89,113.81,13.1987]
[1644364019743,29.2843,113.89,113.81,13.4487]
[1644364019946,29.0343,113.89,113.81,19.4487]
[1644364020149,23.0343,113.89,113.81,19.4487]
[1644364020348,23.0343,113.89,113.81,23.8397]
[1644364020549,23.0343,113.89,113.81,19.4487]
[1644364020748,29.2843,113.89,113.81,13.4487]
[1644364021949,29.2843,113.89,113.81,13.1987]
[1644364022152,42.46,113.89,113.81,13.4247]
[1644364023251,55.04,113.89,113.81,13.4247]
[1644364023651,55.04,113.89,113.81,13.1747]
[1644364023952,55.04,113.89,113.79,13.2002]
[1644364024152,65.92275549,113.89,113.79,0.024]
[1644364024652,81.17421149,113.89,113.79,0.024]
[1644364024851,4.392,113.88,113.74,1.23355723]
[1644364025154,13.1852,113.84,113.74,1.23355723]
[1644364025352,16.974,113.83,113.72,1.23355723]
[1644364025553,23.5617,113.82,113.71,113.73355723]
[1644364025752,4.394,113.81,113.71,113.73355723]
[1644364025952,4.394,113.81,113.71,113.23355723]
[1644364026153,12.58,113.8,113.71,112.0]
[1644364026372,35.9742,113.8,113.71,20.41965723]
[1644364026572,41.7242,113.8,113.71,22.05055707]
[1644364026771,35.7242,113.8,113.71,22.05055707]
[1644364026971,4.394,113.81,113.72,1.23355723]
[1644364027274,36.0942,113.83,113.73,2.61450732]
[1644364027775,23.5142,113.83,113.74,14.56285009]
[1644364028072,23.5142,113.83,113.74,26.19040732]
[1644364028272,12.58,113.86,113.75,89.51095009]
[1644364028473,12.58,113.88,113.76,1.23355723]
[1644364028674,12.58,113.88,113.76,6.0]
[1644364028873,12.58,113.88,113.76,7.48355723]
[1644364029075,12.58,113.88,113.77,4.392]
[1644364029276,12.58,113.88,113.77,0.25]
[1644364029475,13.1787,113.87,113.78,13.1761]
[1644364029677,19.1787,113.87,113.78,13.1761]
[1644364029877,19.1787,113.87,113.78,14.80705009]
[1644364030078,4.392,113.86,113.78,14.55705009]
[1644364030279,4.392,113.86,113.75,11.62555723]
[1644364030478,24.9547,113.85,113.76,6.0]
[1644364030678,44.1353,113.85,113.76,13.1798]
[1644364030878,44.3853,113.85,113.75,10.393]
[1644364031079,44.3853,113.85,113.75,6.0]
[1644364031080,48.7783,113.85,113.75,6.0]
[1644364031477,48.7783,113.85,113.74,7.23355723]
[1644364031678,12.58,113.84,113.75,1.23355723]
[1644364031878,13.1828,113.83,113.75,14.41545723]
[1644364032078,13.1828,113.83,113.75,20.41545723]
[1644364032281,36.2547,113.83,113.75,6.0]
[1644364032481,54.8347,113.83,113.75,6.0]
[1644364032679,54.8347,113.83,113.74,1.23355723]
[1644364032680,4.394,113.82,113.74,6.0]
[1644364032881,12.58,113.82,113.73,1.23355723]
[1644364033080,42.6397,113.82,113.73,7.23355723]
[1644364033280,42.6397,113.82,113.73,6.0]
[1644364033580,42.6397,113.82,113.72,11.62755723]
[1644364033779,13.1851,113.81,113.73,13.1845]
[1644364034181,13.1851,113.81,113.73,19.4345]
[1644364034182,13.4351,113.81,113.73,19.4345]
[1644364034981,19.4351,113.81,113.73,19.4345]
[1644364035181,13.4351,113.81,113.73,19.4345]
[1644364035384,19.4351,113.81,113.73,19.4345]
[1644364036182,19.4351,113.81,113.73,0.25]
[1644364036585,19.4351,113.81,113.72,20.66935723]
[1644364036783,23.8291,113.81,113.72,20.66935723]
[1644364038184,19.4351,113.81,113.72,20.66935723]
[1644364039288,34.9391,113.81,113.72,7.48355723]
[1644364039485,12.58,113.8,113.72,6.0]
[1644364039685,12.58,113.8,113.71,1.23355723]
[1644364039686,18.58,113.8,113.71,7.23355723]
[1644364039985,13.1881,113.78,113.71,1.23355723]
[1644364040185,13.1881,113.78,113.71,7.23355723]
[1644364040384,13.4381,113.78,113.71,7.23355723]
[1644364040788,13.4381,113.78,113.71,7.48355723]
[1644364042393,13.4381,113.78,113.71,6.25]
[1644364042594,22.1231,113.78,113.7,1.23355723]
[1644364042791,12.58,113.77,113.7,1.23355723]
[1644364042993,13.1908,113.76,113.69,1.23355723]
[1644364043196,35.6941,113.76,113.69,1.23355723]
[1644364043492,41.6941,113.76,113.69,1.23355723]
[1644364043692,41.6941,113.76,113.68,14.42345723]
[1644364044592,41.6941,113.76,113.68,20.42345723]
[1644364044792,28.5033,113.76,113.69,1.23355723]
[1644364044992,28.5033,113.76,113.7,14.42195723]
[1644364045201,28.5033,113.76,113.69,1.23355723]
[1644364045392,22.5033,113.76,113.69,7.23355723]
[1644364045593,22.5033,113.76,113.69,1.23355723]
[1644364045795,23.8651,113.77,113.69,1.23355723]
[1644364045994,23.8651,113.77,113.7,14.42175723]
[1644364046194,23.8651,113.77,113.71,4.396]
[1644364046395,23.8651,113.77,113.7,8.86450732]
[1644364046795,23.8651,113.77,113.7,7.23355723]
[1644364046997,23.8651,113.77,113.7,20.42115723]
[1644364047195,24.1151,113.77,113.7,20.42115723]
[1644364047796,24.1151,113.77,113.69,1.23355723]
[1644364047995,26.9038,113.76,113.67,0.62312391]
[1644364048197,32.9038,113.76,113.67,0.62312391]
[1644364048400,33.1538,113.76,113.67,0.62312391]
[1644364048597,33.1538,113.76,113.68,0.024]
[1644364049198,13.1935,113.74,113.68,0.024]
[1644364049400,24.087,113.73,113.67,0.62312391]
[1644364049602,30.087,113.73,113.67,0.62312391]
[1644364049799,30.337,113.73,113.67,0.62312391]
[1644364051004,30.087,113.73,113.67,0.62312391]
[1644364051401,45.38945549,113.73,113.63,1.23355723]
[1644364051603,16.978,113.72,113.61,4.397]
[1644364051801,23.4234,113.71,113.61,4.397]
[1644364052001,4.399,113.7,113.61,4.397]
[1644364052201,10.649,113.7,113.61,3.897]
[1644364052624,10.649,113.7,113.61,9.897]
[1644364052825,36.4721,113.69,113.61,9.897]
[1644364053023,36.4721,113.69,113.61,6.0]
[1644364053225,42.7221,113.69,113.59,24.102]
[1644364053424,42.7221,113.69,113.59,25.33555723]
[1644364053626,42.7221,113.69,113.59,20.93655723]
[1644364054225,42.7221,113.69,113.59,21.18655723]
[1644364054823,42.4721,113.69,113.59,21.18655723]
[1644364055623,29.2718,113.69,113.61,13.1976]
[1644364055824,13.1976,113.71,113.61,23.8466]
[1644364056024,19.1976,113.71,113.61,23.8466]
[1644364056625,6.0,113.71,113.61,111.9766]
[1644364056824,96.3278,113.72,113.61,25.08015723]
[1644364057025,102.3278,113.72,113.61,25.08015723]
[1644364057425,102.3278,113.72,113.61,23.8466]
[1644364058027,114.9078,113.72,113.61,23.8466]
[1644364058226,115.1578,113.72,113.61,23.8466]
[1644364058829,128.3539,113.72,113.61,23.8466]
[1644364059229,132.7519,113.72,113.61,19.4476]
[1644364060334,132.7519,113.72,113.61,6.25]
[1644364060729,132.7519,113.72,113.61,0.25]
[1644364060931,132.7519,113.72,113.61,6.0]
[1644364061131,132.7519,113.72,113.61,6.25]
[1644364061532,132.7519,113.72,113.61,0.25]
[1644364061730,132.7519,113.72,113.61,6.25]
[1644364062430,132.7519,113.72,113.61,0.25]
[1644364062628,132.7519,113.72,113.61,6.25]
[1644364063128,132.7519,113.72,113.61,13.4482]
[1644364063329,132.7519,113.72,113.61,19.4482]
[1644364063531,128.3539,113.72,113.61,23.8462]
[1644364063933,130.46165549,113.72,113.61,23.8462]
[1644364064231,130.46165549,113.72,113.57,112.0776]
[1644364064232,1.2609703,113.51,113.5,50.83232069]
[1644364064433,18.3,113.53,113.5,50.83232069]
[1644364064434,5.91010678,113.53,113.5,31.68032069]
[1644364064633,5.91010678,113.53,113.5,8.95872069]
[1644364064634,11.91010678,113.53,113.5,8.95872069]
[1644364065130,11.91010678,113.53,113.49,7.0]
[1644364065331,11.91010678,113.53,113.49,6.5]
[1644364065732,12.16010678,113.53,113.49,6.5]
[1644364065932,12.16010678,113.53,113.43,0.66342177]
[1644364066132,58.61120678,113.53,113.43,0.66342177]
[1644364066332,12.58,113.52,113.4,0.44074671]
[1644364066538,16.986,113.52,113.4,6.44074671]
[1644364066733,23.236,113.52,113.41,0.024]
[1644364066934,18.83,113.52,113.41,0.024]
[1644364067134,12.83,113.52,113.41,1.40495009]
[1644364067334,10.31610678,113.53,113.42,0.024]
[1644364067535,5.91010678,113.53,113.42,0.024]
[1644364067734,5.91010678,113.53,113.43,1.38095009]
[1644364067735,11.91010678,113.53,113.43,1.38095009]
[1644364067934,5.91010678,113.53,113.44,4.406]
[1644364068534,5.91010678,113.53,113.43,4.405]
[1644364069136,5.91010678,113.53,113.43,10.405]
[1644364069334,5.91010678,113.53,113.43,4.405]
[1644364069534,5.91010678,113.53,113.43,10.655]
[1644364069734,5.91010678,113.53,113.43,10.405]
[1644364070135,25.7969,113.56,113.43,4.405]
[1644364070536,31.7969,113.56,113.43,4.405]
[1644364070734,32.0469,113.56,113.43,4.405]
[1644364071135,32.0469,113.56,113.43,4.655]
[1644364071337,36.4519,113.56,113.43,0.25]
[1644364071538,22.6571,113.55,113.43,0.91342177]
[1644364071738,4.405,113.54,113.43,0.66342177]
[1644364071942,28.9071,113.55,113.43,0.66342177]
[1644364072536,28.9071,113.55,113.43,13.87832177]
[1644364072737,28.6571,113.55,113.44,1.37765229]
[1644364072938,72.5232,113.6,113.44,1.37765229]
[1644364072939,24.0655,113.6,113.44,1.68186516]
[1644364073136,70.7021,113.6,113.44,18.52186516]
[1644364073338,70.7021,113.6,113.45,5.97179128]
[1644364073537,74.8991,113.63,113.46,10.59]